[Event "Titled Tuesday Blitz April 26 Early 2022"]
[White "Bortnyk, Olexandr"]
[Black "Seemann, Jakub"]
[WhiteFideId "14120828"]
[BlackFideId "21874697"]
[WhiteElo "2723"]
[BlackElo "2003"]
[Result "1-0"]
[Round "04"]
[TimeControl "180+1"]
[Date "2022.04.26"]
[WhiteClock "0:01:10"]
[BlackClock "0:00:01"]

1. e4 {[%clk 0:02:59]}  e6 {[%clk 0:02:59]} 2. d4 {[%clk 0:02:59]}  d5 {[%clk 0:03:00]} 3. Nc3 {[%clk 0:03:00]}  dxe4 {[%clk 0:03:00]} 4. Nxe4 {[%clk 0:03:01]}  Nd7 {[%clk 0:03:01]} 5. Bd3 {[%clk 0:03:01]}  Ngf6 {[%clk 0:03:01]} 6. Qe2 {[%clk 0:03:02]}  c5 {[%clk 0:02:58]} 7. Nf3 {[%clk 0:03:02]}  cxd4 {[%clk 0:02:57]} 8. O-O {[%clk 0:02:58]}  Be7 {[%clk 0:02:57]} 9. Nxd4 {[%clk 0:02:57]}  O-O {[%clk 0:02:55]} 10. c3 {[%clk 0:02:56]}  a6 {[%clk 0:02:55]} 11. Rd1 {[%clk 0:02:55]}  Qc7 {[%clk 0:02:54]} 12. Bg5 {[%clk 0:02:43]}  h6 {[%clk 0:02:43]} 13. Bh4 {[%clk 0:02:30]}  Re8 {[%clk 0:02:42]} 14. Bg3 {[%clk 0:02:27]}  Qb6 {[%clk 0:02:42]} 15. a4 {[%clk 0:02:24]}  Nxe4 {[%clk 0:02:41]} 16. Bxe4 {[%clk 0:02:23]}  Nf6 {[%clk 0:02:41]} 17. a5 {[%clk 0:02:22]}  Qa7 {[%clk 0:02:36]} 18. Bf3 {[%clk 0:02:18]}  Bd7 {[%clk 0:02:26]} 19. Be5 {[%clk 0:02:01]}  Rac8 {[%clk 0:02:17]} 20. b4 {[%clk 0:02:01]}  Nd5 {[%clk 0:01:30]} 21. Bxd5 {[%clk 0:01:55]}  exd5 {[%clk 0:01:28]} 22. Qf3 {[%clk 0:01:56]}  Bxb4 {[%clk 0:01:00]} 23. Bxg7 {[%clk 0:01:55]}  Kxg7 {[%clk 0:00:16]} 24. cxb4 {[%clk 0:01:48]}  Re4 {[%clk 0:00:16]} 25. Qg3+ {[%clk 0:01:49]}  Kh7 {[%clk 0:00:15]} 26. Qd6 {[%clk 0:01:42]}  Rxd4 {[%clk 0:00:12]} 27. Qxd7 {[%clk 0:01:42]}  Rf8 {[%clk 0:00:12]} 28. Qf5+ {[%clk 0:01:41]}  Kg8 {[%clk 0:00:11]} 29. Qf6 {[%clk 0:01:38]}  Rxd1+ {[%clk 0:00:08]} 30. Rxd1 {[%clk 0:01:39]}  Re8 {[%clk 0:00:07]} 31. Qxh6 {[%clk 0:01:35]}  Qd4 {[%clk 0:00:06]} 32. Qg5+ {[%clk 0:01:30]}  Kh7 {[%clk 0:00:06]} 33. Qh5+ {[%clk 0:01:27]}  Kg8 {[%clk 0:00:05]} 34. h4 {[%clk 0:01:17]}  Qxb4 {[%clk 0:00:04]} 35. Qg5+ {[%clk 0:01:17]}  Kh7 {[%clk 0:00:04]} 36. Rxd5 {[%clk 0:01:18]}  Qe1+ {[%clk 0:00:03]} 37. Kh2 {[%clk 0:01:18]}  Qe6 {[%clk 0:00:02]} 38. Qd2 {[%clk 0:01:11]}  Kg8 {[%clk 0:00:01]} 39. Rg5+ {[%clk 0:01:11]}  Kf8 {[%clk 0:00:02]} 40. Qb4+ {[%clk 0:01:09]}  Re7 {[%clk 0:00:01]} 41. Qd4 {[%clk 0:01:10]}  Ke8 {[%clk 0:00:01]} 42. Rg8# {[%clk 0:01:10]} 1-0


[Site "https://www.chess.com"]

[Event "Titled Tuesday Blitz April 26 Early 2022"]
[White "Brodowski, Piotr"]
[Black "Gschnitzer, Adrian"]
[WhiteFideId "1124480"]
[BlackFideId "1270337"]
[WhiteElo "2422"]
[BlackElo "2294"]
[Result "1-0"]
[Round "04"]
[TimeControl "180+1"]
[Date "2022.04.26"]
[WhiteClock "0:02:08"]
[BlackClock "0:02:17"]

1. e4 {[%clk 0:02:55]}  c6 {[%clk 0:02:59]} 2. Nc3 {[%clk 0:02:51]}  d5 {[%clk 0:03:00]} 3. Nf3 {[%clk 0:02:51]}  Bg4 {[%clk 0:03:00]} 4. h3 {[%clk 0:02:51]}  Bxf3 {[%clk 0:03:00]} 5. Qxf3 {[%clk 0:02:49]}  e6 {[%clk 0:03:01]} 6. d3 {[%clk 0:02:47]}  Nd7 {[%clk 0:03:00]} 7. Qg3 {[%clk 0:02:48]}  Qb8 {[%clk 0:02:54]} 8. Bf4 {[%clk 0:02:37]}  e5 {[%clk 0:02:53]} 9. Bd2 {[%clk 0:02:37]}  d4 {[%clk 0:02:53]} 10. Ne2 {[%clk 0:02:35]}  Qc7 {[%clk 0:02:51]} 11. Nxd4 {[%clk 0:02:29]}  Qb6 {[%clk 0:02:45]} 12. Nb3 {[%clk 0:02:28]}  O-O-O {[%clk 0:02:44]} 13. Bc3 {[%clk 0:02:27]}  f6 {[%clk 0:02:44]} 14. O-O-O {[%clk 0:02:27]}  Ne7 {[%clk 0:02:43]} 15. d4 {[%clk 0:02:25]}  Ng6 {[%clk 0:02:39]} 16. Bc4 {[%clk 0:02:23]}  Bd6 {[%clk 0:02:37]} 17. d5 {[%clk 0:02:17]}  Nc5 {[%clk 0:02:19]} 18. dxc6 {[%clk 0:02:10]}  Nxe4 {[%clk 0:02:17]} 19. Qg4+ {[%clk 0:02:08]} 1-0


[Site "https://www.chess.com"]

[Event "Titled Tuesday Blitz April 26 Early 2022"]
[White "Chernomordik, Pavel"]
[Black "Starozhilov, Leonid"]
[WhiteFideId "2804530"]
[BlackFideId "14106752"]
[WhiteElo "2220"]
[BlackElo "2414"]
[Result "0-1"]
[Round "04"]
[TimeControl "180+1"]
[Date "2022.04.26"]
[WhiteClock "0:01:00"]
[BlackClock "0:01:09"]

1. e4 {[%clk 0:03:00]}  Nc6 {[%clk 0:02:56]} 2. Nf3 {[%clk 0:03:00]}  d6 {[%clk 0:02:56]} 3. d4 {[%clk 0:02:57]}  Nf6 {[%clk 0:02:56]} 4. Nc3 {[%clk 0:02:56]}  g6 {[%clk 0:02:55]} 5. h3 {[%clk 0:02:54]}  Bg7 {[%clk 0:02:55]} 6. Be3 {[%clk 0:02:50]}  a6 {[%clk 0:02:54]} 7. Qd2 {[%clk 0:02:46]}  b5 {[%clk 0:02:51]} 8. Bd3 {[%clk 0:02:42]}  Bb7 {[%clk 0:02:48]} 9. Bh6 {[%clk 0:02:33]}  O-O {[%clk 0:02:29]} 10. g4 {[%clk 0:02:31]}  e5 {[%clk 0:02:15]} 11. d5 {[%clk 0:02:27]}  Nd4 {[%clk 0:02:06]} 12. Nxd4 {[%clk 0:02:19]}  exd4 {[%clk 0:02:06]} 13. Ne2 {[%clk 0:02:19]}  Re8 {[%clk 0:02:06]} 14. f3 {[%clk 0:02:15]}  Nxe4 {[%clk 0:02:04]} 15. Bxe4 {[%clk 0:01:50]}  Qh4+ {[%clk 0:02:04]} 16. Kf1 {[%clk 0:01:50]}  Bxh6 {[%clk 0:01:58]} 17. Qxd4 {[%clk 0:01:49]}  Bg7 {[%clk 0:01:58]} 18. Qd3 {[%clk 0:01:46]}  Bxb2 {[%clk 0:01:56]} 19. Rb1 {[%clk 0:01:45]}  Bg7 {[%clk 0:01:55]} 20. Kg2 {[%clk 0:01:46]}  Re7 {[%clk 0:01:18]} 21. a4 {[%clk 0:01:31]}  Rae8 {[%clk 0:01:16]} 22. axb5 {[%clk 0:01:19]}  f5 {[%clk 0:01:10]} 23. bxa6 {[%clk 0:01:09]}  fxe4 {[%clk 0:01:10]} 24. axb7 {[%clk 0:01:00]}  exd3 {[%clk 0:01:09]} 0-1


[Site "https://www.chess.com"]

[Event "Titled Tuesday Blitz April 26 Early 2022"]
[White "Ciorgovean, Iustin"]
[Black "Fernandez, Daniel Howard"]
[WhiteFideId "1242911"]
[BlackFideId "5801605"]
[WhiteElo "2075"]
[BlackElo "2466"]
[Result "0-1"]
[Round "04"]
[TimeControl "180+1"]
[Date "2022.04.26"]
[WhiteClock "0:00:24"]
[BlackClock "0:01:10"]

1. d4 {[%clk 0:02:46]}  Nf6 {[%clk 0:02:59]} 2. c4 {[%clk 0:02:42]}  e6 {[%clk 0:02:59]} 3. Nc3 {[%clk 0:02:40]}  Bb4 {[%clk 0:02:59]} 4. Qc2 {[%clk 0:02:40]}  d6 {[%clk 0:02:57]} 5. Bg5 {[%clk 0:02:40]}  Nbd7 {[%clk 0:02:56]} 6. e3 {[%clk 0:02:40]}  h6 {[%clk 0:02:51]} 7. Bh4 {[%clk 0:02:40]}  O-O {[%clk 0:02:42]} 8. Bd3 {[%clk 0:02:37]}  b6 {[%clk 0:02:42]} 9. Ne2 {[%clk 0:02:36]}  Bb7 {[%clk 0:02:41]} 10. O-O {[%clk 0:02:36]}  Bxc3 {[%clk 0:02:40]} 11. Nxc3 {[%clk 0:02:36]}  c5 {[%clk 0:02:38]} 12. f3 {[%clk 0:02:04]}  cxd4 {[%clk 0:02:36]} 13. exd4 {[%clk 0:02:05]}  Rc8 {[%clk 0:02:36]} 14. Qd2 {[%clk 0:02:02]}  e5 {[%clk 0:02:34]} 15. d5 {[%clk 0:02:00]}  a6 {[%clk 0:02:29]} 16. b3 {[%clk 0:01:57]}  Qc7 {[%clk 0:02:27]} 17. a4 {[%clk 0:01:46]}  Nh5 {[%clk 0:02:27]} 18. Bf2 {[%clk 0:01:32]}  Nf4 {[%clk 0:02:26]} 19. Bc2 {[%clk 0:01:24]}  f5 {[%clk 0:02:21]} 20. Kh1 {[%clk 0:01:23]}  Qd8 {[%clk 0:02:20]} 21. Be3 {[%clk 0:01:20]}  Nh5 {[%clk 0:02:14]} 22. g4 {[%clk 0:01:18]}  fxg4 {[%clk 0:01:47]} 23. fxg4 {[%clk 0:01:19]}  Nf4 {[%clk 0:01:47]} 24. Bxf4 {[%clk 0:01:17]}  exf4 {[%clk 0:01:48]} 25. Rxf4 {[%clk 0:01:17]}  Ne5 {[%clk 0:01:49]} 26. Raf1 {[%clk 0:01:12]}  Rxf4 {[%clk 0:01:38]} 27. Rxf4 {[%clk 0:01:12]}  Rc7 {[%clk 0:01:37]} 28. Qe2 {[%clk 0:01:10]}  Bc8 {[%clk 0:01:36]} 29. Qe4 {[%clk 0:01:06]}  g6 {[%clk 0:01:36]} 30. Qe3 {[%clk 0:00:45]}  Nxg4 {[%clk 0:01:26]} 31. Qxb6 {[%clk 0:00:30]}  Qh4 {[%clk 0:01:11]} 32. Rxg4 {[%clk 0:00:24]}  Bxg4 {[%clk 0:01:11]} 33. Qxc7 {[%clk 0:00:24]}  Bf3+ {[%clk 0:01:10]} 0-1


[Site "https://www.chess.com"]

[Event "Titled Tuesday Blitz April 26 Early 2022"]
[White "Costachi, Mihnea"]
[Black "Vovk, Orest"]
[WhiteFideId "1217518"]
[BlackFideId "14113490"]
[WhiteElo "2476"]
[BlackElo "2203"]
[Result "1-0"]
[Round "04"]
[TimeControl "180+1"]
[Date "2022.04.26"]
[WhiteClock "0:02:23"]
[BlackClock "0:01:36"]

1. d4 {[%clk 0:03:00]}  d6 {[%clk 0:02:57]} 2. e4 {[%clk 0:03:00]}  Nd7 {[%clk 0:02:57]} 3. Nc3 {[%clk 0:03:00]}  e5 {[%clk 0:02:58]} 4. Nf3 {[%clk 0:03:01]}  Ngf6 {[%clk 0:02:58]} 5. h3 {[%clk 0:03:01]}  Be7 {[%clk 0:02:57]} 6. Be3 {[%clk 0:03:02]}  O-O {[%clk 0:02:57]} 7. Qd2 {[%clk 0:03:02]}  exd4 {[%clk 0:02:57]} 8. Nxd4 {[%clk 0:03:02]}  Nc5 {[%clk 0:02:57]} 9. f3 {[%clk 0:03:00]}  Re8 {[%clk 0:02:51]} 10. O-O-O {[%clk 0:03:01]}  a6 {[%clk 0:02:45]} 11. g4 {[%clk 0:03:01]}  b5 {[%clk 0:02:45]} 12. g5 {[%clk 0:03:01]}  Nh5 {[%clk 0:02:43]} 13. Nd5 {[%clk 0:02:52]}  Bf8 {[%clk 0:02:40]} 14. h4 {[%clk 0:02:45]}  Ng3 {[%clk 0:02:32]} 15. Rg1 {[%clk 0:02:45]}  Nxf1 {[%clk 0:02:32]} 16. Rdxf1 {[%clk 0:02:46]}  c6 {[%clk 0:02:28]} 17. Nxc6 {[%clk 0:02:44]}  Qd7 {[%clk 0:02:23]} 18. Nd4 {[%clk 0:02:38]}  Bb7 {[%clk 0:02:22]} 19. Nf6+ {[%clk 0:02:27]}  gxf6 {[%clk 0:02:17]} 20. gxf6+ {[%clk 0:02:28]}  Kh8 {[%clk 0:02:16]} 21. Bh6 {[%clk 0:02:29]}  Bxe4 {[%clk 0:01:48]} 22. fxe4 {[%clk 0:02:25]}  Nxe4 {[%clk 0:01:39]} 23. Rg8+ {[%clk 0:02:22]}  Kxg8 {[%clk 0:01:39]} 24. Qg2+ {[%clk 0:02:22]}  Kh8 {[%clk 0:01:38]} 25. Bg7+ {[%clk 0:02:23]}  Kg8 {[%clk 0:01:37]} 26. Bxf8+ {[%clk 0:02:23]}  Kxf8 {[%clk 0:01:36]} 27. Qg7# {[%clk 0:02:23]} 1-0


[Site "https://www.chess.com"]

[Event "Titled Tuesday Blitz April 26 Early 2022"]
[White "Csonka, Balazs"]
[Black "Silvestre, Christian"]
[WhiteFideId "742910"]
[BlackFideId "30956269"]
[WhiteElo "2404"]
[BlackElo "2325"]
[Result "1-0"]
[Round "04"]
[TimeControl "180+1"]
[Date "2022.04.26"]
[WhiteClock "0:00:41"]
[BlackClock "0:01:16"]

1. d4 {[%clk 0:03:00]}  Nf6 {[%clk 0:02:59]} 2. c4 {[%clk 0:03:00]}  d6 {[%clk 0:02:59]} 3. Nf3 {[%clk 0:02:57]}  g6 {[%clk 0:02:59]} 4. Nc3 {[%clk 0:02:55]}  Bg7 {[%clk 0:02:58]} 5. e4 {[%clk 0:02:54]}  O-O {[%clk 0:02:58]} 6. Be2 {[%clk 0:02:46]}  e5 {[%clk 0:02:56]} 7. Be3 {[%clk 0:02:46]}  Nc6 {[%clk 0:02:53]} 8. d5 {[%clk 0:02:46]}  Ne7 {[%clk 0:02:51]} 9. Nd2 {[%clk 0:02:46]}  Nd7 {[%clk 0:02:49]} 10. O-O {[%clk 0:02:45]}  f5 {[%clk 0:02:48]} 11. f3 {[%clk 0:02:45]}  f4 {[%clk 0:02:48]} 12. Bf2 {[%clk 0:02:45]}  g5 {[%clk 0:02:46]} 13. b4 {[%clk 0:02:45]}  Nf6 {[%clk 0:02:44]} 14. c5 {[%clk 0:02:45]}  Rf7 {[%clk 0:02:41]} 15. cxd6 {[%clk 0:02:33]}  cxd6 {[%clk 0:02:42]} 16. Nc4 {[%clk 0:02:33]}  Bf8 {[%clk 0:02:36]} 17. Nb5 {[%clk 0:02:32]}  Ng6 {[%clk 0:02:29]} 18. Nxa7 {[%clk 0:02:13]}  Rxa7 {[%clk 0:02:19]} 19. Bxa7 {[%clk 0:02:14]}  h5 {[%clk 0:02:16]} 20. Nb6 {[%clk 0:02:03]}  g4 {[%clk 0:02:12]} 21. Nxc8 {[%clk 0:01:47]}  Qxc8 {[%clk 0:02:09]} 22. Bf2 {[%clk 0:01:40]}  g3 {[%clk 0:02:07]} 23. hxg3 {[%clk 0:01:35]}  fxg3 {[%clk 0:02:08]} 24. Bxg3 {[%clk 0:01:35]}  h4 {[%clk 0:02:07]} 25. Bh2 {[%clk 0:01:32]}  Nh5 {[%clk 0:02:04]} 26. f4 {[%clk 0:01:22]}  Nhxf4 {[%clk 0:02:00]} 27. Bg4 {[%clk 0:01:19]}  Qd8 {[%clk 0:01:57]} 28. Bxf4 {[%clk 0:00:55]}  Rxf4 {[%clk 0:01:50]} 29. Be6+ {[%clk 0:00:53]}  Kg7 {[%clk 0:01:42]} 30. Rxf4 {[%clk 0:00:52]}  exf4 {[%clk 0:01:41]} 31. Qg4 {[%clk 0:00:49]}  Qb6+ {[%clk 0:01:23]} 32. Kh1 {[%clk 0:00:48]}  h3 {[%clk 0:01:18]} 33. Bf5 {[%clk 0:00:40]}  hxg2+ {[%clk 0:01:16]} 34. Qxg2 {[%clk 0:00:41]} 1-0


[Site "https://www.chess.com"]

[Event "Titled Tuesday Blitz April 26 Early 2022"]
[White "Daneshvar, Bardiya"]
[Black "Di Nicolantonio, Lucas"]
[WhiteFideId "12576468"]
[BlackFideId "680460"]
[WhiteElo "2795"]
[BlackElo "2532"]
[Result "1-0"]
[Round "04"]
[TimeControl "180+1"]
[Date "2022.04.26"]
[WhiteClock "0:00:08"]
[BlackClock "0:00:07"]

1. b3 {[%clk 0:03:00]}  Nf6 {[%clk 0:02:57]} 2. Bb2 {[%clk 0:03:00]}  g6 {[%clk 0:02:58]} 3. e3 {[%clk 0:03:00]}  Bg7 {[%clk 0:02:59]} 4. d4 {[%clk 0:02:58]}  O-O {[%clk 0:02:59]} 5. Nf3 {[%clk 0:02:59]}  d5 {[%clk 0:02:57]} 6. c4 {[%clk 0:02:59]}  c6 {[%clk 0:02:56]} 7. Nc3 {[%clk 0:02:59]}  Nbd7 {[%clk 0:02:54]} 8. Be2 {[%clk 0:02:59]}  Re8 {[%clk 0:02:53]} 9. O-O {[%clk 0:02:59]}  e6 {[%clk 0:02:40]} 10. a3 {[%clk 0:02:55]}  b6 {[%clk 0:02:39]} 11. b4 {[%clk 0:02:55]}  Bb7 {[%clk 0:02:33]} 12. c5 {[%clk 0:02:55]}  a5 {[%clk 0:02:13]} 13. Na4 {[%clk 0:02:49]}  b5 {[%clk 0:02:09]} 14. Nc3 {[%clk 0:02:48]}  Bc8 {[%clk 0:02:02]} 15. Nd2 {[%clk 0:02:43]}  e5 {[%clk 0:01:59]} 16. Nb3 {[%clk 0:02:42]}  a4 {[%clk 0:01:57]} 17. Na5 {[%clk 0:02:42]}  Qc7 {[%clk 0:01:57]} 18. Nxc6 {[%clk 0:02:34]}  Qxc6 {[%clk 0:01:54]} 19. Bxb5 {[%clk 0:02:34]}  Qe6 {[%clk 0:01:47]} 20. Nxa4 {[%clk 0:02:30]}  Ba6 {[%clk 0:01:35]} 21. Bxa6 {[%clk 0:02:25]}  Qxa6 {[%clk 0:01:34]} 22. Nc3 {[%clk 0:02:23]}  exd4 {[%clk 0:01:32]} 23. exd4 {[%clk 0:02:21]}  Qc4 {[%clk 0:01:25]} 24. Rc1 {[%clk 0:02:17]}  Nh5 {[%clk 0:01:09]} 25. Nb1 {[%clk 0:02:08]}  Qb5 {[%clk 0:00:58]} 26. c6 {[%clk 0:02:05]}  Nb6 {[%clk 0:00:56]} 27. Rc5 {[%clk 0:02:04]}  Qe2 {[%clk 0:00:29]} 28. Qb3 {[%clk 0:01:49]}  Nf4 {[%clk 0:00:24]} 29. Rc2 {[%clk 0:01:29]}  Qg4 {[%clk 0:00:20]} 30. f3 {[%clk 0:01:27]}  Qg5 {[%clk 0:00:18]} 31. Bc1 {[%clk 0:01:19]}  Bxd4+ {[%clk 0:00:18]} 32. Kh1 {[%clk 0:01:19]}  Nc4 {[%clk 0:00:14]} 33. g3 {[%clk 0:01:14]}  Ne3 {[%clk 0:00:05]} 34. gxf4 {[%clk 0:01:14]}  Qh4 {[%clk 0:00:05]} 35. Bxe3 {[%clk 0:00:58]}  Bxe3 {[%clk 0:00:05]} 36. Nc3 {[%clk 0:00:52]}  Bxf4 {[%clk 0:00:05]} 37. Nxd5 {[%clk 0:00:52]}  Bd6 {[%clk 0:00:05]} 38. Qc3 {[%clk 0:00:48]}  Re5 {[%clk 0:00:03]} 39. c7 {[%clk 0:00:37]}  Rxd5 {[%clk 0:00:03]} 40. c8=Q+ {[%clk 0:00:37]}  Rxc8 {[%clk 0:00:04]} 41. Qxc8+ {[%clk 0:00:37]}  Kg7 {[%clk 0:00:04]} 42. Qg4 {[%clk 0:00:34]}  Qh6 {[%clk 0:00:04]} 43. Qg2 {[%clk 0:00:31]}  Rg5 {[%clk 0:00:04]} 44. Qd2 {[%clk 0:00:29]}  Be5 {[%clk 0:00:04]} 45. Qe3 {[%clk 0:00:22]}  Bf4 {[%clk 0:00:04]} 46. Qd4+ {[%clk 0:00:19]}  Be5 {[%clk 0:00:04]} 47. Qf2 {[%clk 0:00:18]}  Rh5 {[%clk 0:00:04]} 48. f4 {[%clk 0:00:16]}  Bf6 {[%clk 0:00:05]} 49. Qg3 {[%clk 0:00:15]}  Rh3 {[%clk 0:00:06]} 50. Qg2 {[%clk 0:00:15]}  Rh4 {[%clk 0:00:06]} 51. Rcf2 {[%clk 0:00:13]}  Qh5 {[%clk 0:00:06]} 52. f5 {[%clk 0:00:11]}  g5 {[%clk 0:00:07]} 53. Qf3 {[%clk 0:00:10]}  g4 {[%clk 0:00:07]} 54. Qe4 {[%clk 0:00:09]}  Rh3 {[%clk 0:00:07]} 55. Rg2 {[%clk 0:00:08]}  g3 {[%clk 0:00:07]} 56. Qc2 {[%clk 0:00:06]}  Be5 {[%clk 0:00:07]} 57. f6+ {[%clk 0:00:06]}  Kh6 {[%clk 0:00:06]} 58. Qd2+ {[%clk 0:00:06]}  Kg6 {[%clk 0:00:06]} 59. Qd3+ {[%clk 0:00:06]}  Kh6 {[%clk 0:00:06]} 60. Qe3+ {[%clk 0:00:06]}  Kg6 {[%clk 0:00:07]} 61. Qe4+ {[%clk 0:00:07]}  Kh6 {[%clk 0:00:07]} 62. Qe3+ {[%clk 0:00:06]}  Kg6 {[%clk 0:00:07]} 63. Qg1 {[%clk 0:00:07]}  Kh6 {[%clk 0:00:06]} 64. b5 {[%clk 0:00:07]}  Rxh2+ {[%clk 0:00:06]} 65. Rxh2 {[%clk 0:00:07]}  gxh2 {[%clk 0:00:07]} 66. Qe3+ {[%clk 0:00:07]}  Kg6 {[%clk 0:00:07]} 67. Qf3 {[%clk 0:00:08]}  Qg5 {[%clk 0:00:06]} 68. Qg2 {[%clk 0:00:08]}  Bg3 {[%clk 0:00:06]} 69. b6 {[%clk 0:00:08]}  Qe3 {[%clk 0:00:06]} 70. b7 {[%clk 0:00:07]}  Kh6 {[%clk 0:00:06]} 71. Qh3+ {[%clk 0:00:05]}  Kg5 {[%clk 0:00:06]} 72. b8=Q {[%clk 0:00:05]}  Qe4+ {[%clk 0:00:07]} 73. Qg2 {[%clk 0:00:05]}  Qxg2+ {[%clk 0:00:08]} 74. Kxg2 {[%clk 0:00:06]}  Bxb8 {[%clk 0:00:08]} 75. a4 {[%clk 0:00:07]}  h5 {[%clk 0:00:08]} 76. a5 {[%clk 0:00:07]}  Ba7 {[%clk 0:00:08]} 77. Kxh2 {[%clk 0:00:06]}  h4 {[%clk 0:00:08]} 78. Kh3 {[%clk 0:00:07]}  Bd4 {[%clk 0:00:07]} 79. a6 {[%clk 0:00:07]}  Kh5 {[%clk 0:00:07]} 80. Rf4 {[%clk 0:00:06]}  Bb6 {[%clk 0:00:07]} 81. Rxh4+ {[%clk 0:00:06]}  Kg5 {[%clk 0:00:08]} 82. Rb4 {[%clk 0:00:06]}  Be3 {[%clk 0:00:06]} 83. Rb7 {[%clk 0:00:07]}  Kxf6 {[%clk 0:00:07]} 84. a7 {[%clk 0:00:08]} 1-0


[Site "https://www.chess.com"]

[Event "Titled Tuesday Blitz April 26 Early 2022"]
[White "De Souza, Cristiano Gomes"]
[Black "Murthy, Pappu"]
[WhiteFideId "2151758"]
[BlackFideId "2013401"]
[WhiteElo "2068"]
[BlackElo "1973"]
[Result "1-0"]
[Round "04"]
[TimeControl "180+1"]
[Date "2022.04.26"]
[WhiteClock "0:01:18"]
[BlackClock "0:00:05"]

1. d4 {[%clk 0:03:00]}  Nf6 {[%clk 0:02:59]} 2. c4 {[%clk 0:03:01]}  c5 {[%clk 0:02:58]} 3. d5 {[%clk 0:03:01]}  b5 {[%clk 0:02:58]} 4. cxb5 {[%clk 0:03:01]}  a6 {[%clk 0:02:58]} 5. bxa6 {[%clk 0:03:02]}  g6 {[%clk 0:02:58]} 6. Nc3 {[%clk 0:03:00]}  Bg7 {[%clk 0:02:58]} 7. g3 {[%clk 0:03:00]}  O-O {[%clk 0:02:58]} 8. Bg2 {[%clk 0:03:01]}  d6 {[%clk 0:02:57]} 9. Nf3 {[%clk 0:03:01]}  Nxa6 {[%clk 0:02:57]} 10. O-O {[%clk 0:02:55]}  Bf5 {[%clk 0:02:57]} 11. Nh4 {[%clk 0:02:54]}  Bd7 {[%clk 0:02:45]} 12. Rb1 {[%clk 0:02:49]}  Qa5 {[%clk 0:02:44]} 13. a3 {[%clk 0:02:44]}  Rfb8 {[%clk 0:02:44]} 14. Bd2 {[%clk 0:02:43]}  Nc7 {[%clk 0:02:27]} 15. Qc2 {[%clk 0:02:41]}  Nb5 {[%clk 0:02:24]} 16. Nxb5 {[%clk 0:02:40]}  Qxb5 {[%clk 0:02:25]} 17. Bc3 {[%clk 0:02:40]}  Qb3 {[%clk 0:02:03]} 18. Qxb3 {[%clk 0:02:31]}  Rxb3 {[%clk 0:02:01]} 19. Rbd1 {[%clk 0:02:30]}  Ne8 {[%clk 0:01:54]} 20. Bxg7 {[%clk 0:02:25]}  Kxg7 {[%clk 0:01:55]} 21. Rd2 {[%clk 0:02:25]}  Rab8 {[%clk 0:01:53]} 22. Rb1 {[%clk 0:02:15]}  Rxa3 {[%clk 0:01:52]} 23. f4 {[%clk 0:02:10]}  Ra2 {[%clk 0:01:29]} 24. Kf2 {[%clk 0:02:10]}  Nc7 {[%clk 0:01:22]} 25. e4 {[%clk 0:02:07]}  Nb5 {[%clk 0:01:21]} 26. Ke3 {[%clk 0:02:03]}  Nd4 {[%clk 0:01:05]} 27. Nf3 {[%clk 0:01:58]}  Rb3+ {[%clk 0:00:59]} 28. Kf2 {[%clk 0:01:54]}  Nb5 {[%clk 0:00:54]} 29. Bf1 {[%clk 0:01:48]}  Bg4 {[%clk 0:00:48]} 30. Ne1 {[%clk 0:01:37]}  Nd4 {[%clk 0:00:46]} 31. Bc4 {[%clk 0:01:31]}  Nf3 {[%clk 0:00:32]} 32. Bxb3 {[%clk 0:01:29]}  Nxd2 {[%clk 0:00:31]} 33. Bxa2 {[%clk 0:01:29]}  Nxb1 {[%clk 0:00:17]} 34. Bxb1 {[%clk 0:01:28]}  e6 {[%clk 0:00:17]} 35. dxe6 {[%clk 0:01:27]}  fxe6 {[%clk 0:00:18]} 36. Nd3 {[%clk 0:01:24]}  c4 {[%clk 0:00:17]} 37. Nb4 {[%clk 0:01:22]}  Bd1 {[%clk 0:00:13]} 38. Ke3 {[%clk 0:01:22]}  Bb3 {[%clk 0:00:12]} 39. Kd4 {[%clk 0:01:20]}  Kf6 {[%clk 0:00:08]} 40. e5+ {[%clk 0:01:19]}  dxe5+ {[%clk 0:00:05]} 41. fxe5+ {[%clk 0:01:18]}  Ke7 {[%clk 0:00:06]} 42. Nc6+ {[%clk 0:01:17]}  Kd7 {[%clk 0:00:05]} 43. Na5 {[%clk 0:01:18]} 1-0


[Site "https://www.chess.com"]